fUSD/lending_fUSD_20251013
["ID","MTS","AMOUNT","RATE_DAILY","PERIOD"]
[391086953,1760314232923,-169.25825524,0.000164,2]
[391086954,1760314232933,-169.25825524,0.000165,2]
[391086955,1760314232943,-169.11653033,0.00016593,2]
[391086956,1760314232953,-167.05310542,0.00016612,2]
[391086957,1760314232964,-273.93514326,0.00016612,2]
[391086958,1760314232978,-2500.0,0.00016662,2]
[391086959,1760314232987,-150.0,0.00016712,2]
[391086960,1760314232998,-162.87,0.00016712,2]
[391086961,1760314233007,-1812.65810871,0.00016787,2]
[391086962,1760314233017,-475.28169836,0.00016999,2]
[391086963,1760314233026,-1200.0,0.00016999,2]
[391086964,1760314233036,-718.65237047,0.00017,2]
[391086965,1760314233046,-250.0,0.00017,2]
[391086966,1760314233055,-718.65237047,0.000172,2]
[391086967,1760314233064,-300.0,0.00017211,2]
[391086968,1760314233074,-300.0,0.00017212,2]
[391086969,1760314233083,-190.0,0.00017212,2]
[391086970,1760314233092,-1583.853108,0.00017213,2]
[391086971,1760314233101,-718.65237047,0.000173,2]
[391086972,1760314233111,-718.65237047,0.000175,2]
[391086973,1760314233121,-718.65237047,0.000177,2]
[391086974,1760314233130,-1064.36211263,0.00018,2]
[391086975,1760314233138,-204.27564594,0.00018,2]
[391086976,1760314233148,-246.90919376,0.00018,2]
[391086977,1760314233157,-209.21997909,0.00018,2]
[391086978,1760314233166,-500.0,0.00018,2]
[391086979,1760314233175,-1064.36211263,0.000182,2]
[391086980,1760314233184,-204.27564594,0.000182,2]
[391086981,1760314233195,-209.21997909,0.000182,2]
[391086982,1760314233204,-2500.0,0.00018273,2]
[391086983,1760314233214,-1609.44330139,0.00018273,2]
[391086984,1760314233224,-500.0,0.00018373,2]
[391086985,1760314233233,-151.0,0.00018373,2]
[391086986,1760314233243,-1064.36211263,0.000184,2]
[391086987,1760314233253,-1064.36211263,0.000185,2]
[391086988,1760314233262,-1000.0,0.00018548,2]
[391086989,1760314233271,-150.0,0.00018548,2]
[391086990,1760314233281,-1200.0,0.00018659,2]
[391086991,1760314233290,-1064.36211263,0.000187,2]
[391086992,1760314233299,-161.36,0.00018753,2]
[391086993,1760314233309,-300.0,0.00018794,2]
[391086994,1760314233322,-179.0,0.00018795,2]
[391086995,1760314233333,-300.0,0.00019,2]
[391086996,1760314233343,-1500.0,0.00019096,2]
[391086997,1760314233353,-1000.0,0.00019644,2]
[391086998,1760314233362,-273.93514326,0.00021632,2]
[391086999,1760314233371,-250.0,0.0002167,2]
[391087000,1760314233381,-6720.12,0.00021757,2]
[391087001,1760314233392,-3475.0,0.00021757,2]
[391087002,1760314233402,-150.99,0.00021757,2]
[391087003,1760314233411,-500.0,0.00021787,2]
[391087004,1760314233420,-666.0,0.0002358,3]
[391087005,1760314233430,-250.0,0.00023671,2]
[391087006,1760314233439,-920.05,0.00023836,2]
[391087007,1760314233448,-212.95,0.00023968,2]
[391087008,1760314233458,-641.984,0.00024018,5]
[391087009,1760314233467,-193.78,0.00024066,2]
[391087010,1760314233476,-200.0,0.00024102,2]
[391087011,1760314233486,-1909.89,0.00024165,2]
[391087012,1760314233495,-166.66,0.00024254,2]
[391087013,1760314233505,-506.0,0.00024397,2]
[391087014,1760314233514,-222.0,0.00025754,2]
[391087015,1760314233523,-901.0,0.00025848,2]
[391087016,1760314233532,-2545.0,0.00025848,2]
[391087017,1760314233541,-772.0,0.00025848,2]
[391087018,1760314233551,-300.0,0.00025898,2]
[391087019,1760314233561,-166.66,0.00026256,2]
[391087020,1760314233570,-500.0,0.00026325,2]
[391087021,1760314233580,-500.0,0.00026325,2]
[391087022,1760314233590,-273.93514326,0.00026652,2]
[391087023,1760314233599,-15410.45490121,0.00026743,2]
[391087024,1760314233658,-4888.61141421,0.00026743,2]
[391087025,1760314233687,-773.95368458,0.00026743,2]
[391087026,1760314233696,-224.10092567,0.00026752,2]
[391087027,1760314233705,-500.0,0.00026752,2]
[391087028,1760314233715,-500.0,0.00026752,2]
[391087029,1760314233725,-500.0,0.00026752,2]
[391087030,1760314233737,-500.0,0.00026752,2]
[391087031,1760314233747,-500.0,0.00026752,2]
[391087032,1760314233758,-1000.0,0.00026752,2]
[391087033,1760314233767,-500.0,0.00026752,2]
[391087034,1760314233776,-2852.14538971,0.00026752,2]
[391087041,1760314238043,-4478.6181351,0.00026752,2]
[391087042,1760314238153,-1551.92498999,0.00026752,2]
[391087043,1760314238162,-607.05092937,0.00026752,2]
[391087044,1760314238170,-301.62650624,0.00026752,2]
[391087045,1760314238181,-198.37349376,0.00026752,2]
[391087046,1760314238190,-102.22650624,0.00026752,2]
[391087047,1760314238267,-397.77349376,0.00026752,2]
[391087048,1760314238278,-151.0,0.00026752,2]
[391087049,1760314238287,-500.0,0.00026752,2]
[391087050,1760314238296,-500.0,0.00026752,2]
[391087051,1760314238304,-500.0,0.00026752,2]
[391087052,1760314238320,-500.0,0.00026752,2]
[391087053,1760314238329,-500.0,0.00026752,2]
[391087054,1760314238338,-500.0,0.00026752,2]
[391087055,1760314238347,-500.0,0.00026752,2]
[391087056,1760314238355,-500.0,0.00026752,2]
[391087057,1760314238365,-670.58624095,0.00026752,2]
[391087058,1760314238374,-1000.0,0.00026752,2]
[391087059,1760314238383,-257.91778498,0.00026752,2]
[391087060,1760314238393,-177.74401607,0.00026752,2]
[391087062,1760314238402,-1000.0,0.00026752,2]
[391087064,1760314238412,-9211.34798985,0.00026807,2]
[391087066,1760314238421,-9552.16786547,0.00026862,2]
[391087067,1760314238429,-9905.5980765,0.00026917,2]
[391087069,1760314238438,-10272.10520533,0.00026972,2]
[391087071,1760314238446,-5394.02695354,0.00027027,2]
[391087073,1760314238454,-300.0,0.00027268,2]
[391087075,1760314238463,-600.0,0.00027397,2]
[391087077,1760314238475,-397.01630593,0.00027498,7]
[391087079,1760314238487,-297.76222945,0.00027498,7]
[391087081,1760314238494,-248.13519121,0.00027498,7]
[391087083,1760314238503,-347.38926769,0.00027498,7]
[391087085,1760314238510,-223.32167208,0.00027498,7]
[391087087,1760314238519,-272.94871034,0.00027498,7]
[391087089,1760314238528,-200.0,0.00027518,2]
[391087091,1760314238537,-422.76465953,0.00027579,5]
[391087093,1760314238546,-153.0,0.00027818,2]
[391087094,1760314238553,-153.0,0.00027819,2]
[391087096,1760314238562,-153.0,0.00027821,2]
[391087098,1760314238570,-153.0,0.00027822,2]
[391087100,1760314238579,-155.9301446,0.00027898,2]
[391087102,1760314238587,-500.0,0.00027898,2]
[391087104,1760314238596,-178.35044161,0.00027898,2]
[391087106,1760314238604,-500.0,0.00027898,2]
[391087108,1760314238612,-500.0,0.00027898,2]
[391087111,1760314238620,-500.0,0.00027898,2]
[391087113,1760314238628,-500.0,0.00027898,2]
[391087115,1760314238637,-500.0,0.00027898,2]
[391087116,1760314238647,-400.95072376,0.00027898,2]
[391087118,1760314238656,-500.0,0.00027898,2]
[391087120,1760314238665,-500.0,0.00027898,2]
[391087122,1760314238674,-500.0,0.00027898,2]
[391087124,1760314238683,-500.0,0.00027898,2]
[391087126,1760314238693,-500.0,0.00027898,2]
[391087128,1760314238702,-500.0,0.00027898,2]
[391087130,1760314238712,-500.0,0.00027898,2]
[391087132,1760314238721,-500.0,0.00027898,2]
[391087134,1760314238730,-500.0,0.00027898,2]
[391087136,1760314238739,-500.0,0.00027898,2]
[391087138,1760314238753,-500.0,0.00027898,2]
[391087140,1760314238763,-500.0,0.00027898,2]
[391087142,1760314238772,-500.0,0.00027898,2]
[391087144,1760314238781,-500.0,0.00027898,2]
[391087147,1760314238790,-500.0,0.00027898,2]
[391087149,1760314238799,-500.0,0.00027898,2]
[391087150,1760314238808,-500.0,0.00027898,2]
[391087152,1760314238818,-452.34106637,0.00027898,2]
[391087155,1760314238830,-47.65893363,0.00027898,2]
[391087157,1760314238840,-500.0,0.00027898,2]
[391087159,1760314238850,-500.0,0.00027898,2]
[391087161,1760314238859,-500.0,0.00027898,2]
[391087163,1760314238869,-277.98886348,0.00027898,2]
[391087165,1760314238878,-500.0,0.00027898,2]
[391087167,1760314238887,-500.0,0.00027898,2]
[391087169,1760314238896,-500.0,0.00027898,2]
[391087171,1760314238906,-500.0,0.00027898,2]
[391087173,1760314238916,-500.0,0.00027898,2]
[391087175,1760314238925,-500.0,0.00027898,2]
[391087177,1760314238935,-500.0,0.00027898,2]
[391087179,1760314238944,-500.0,0.00027898,2]
[391087181,1760314238955,-500.0,0.00027898,2]
[391087183,1760314238964,-2000.0,0.000279,2]
[391087185,1760314238973,-500.0,0.00027945,14]
[391087187,1760314238982,-150.0,0.00027945,2]
[391087189,1760314238992,-150.0,0.00027945,14]
[391087191,1760314239006,-150.0,0.00027945,14]
[391087193,1760314239016,-258.845,0.00027945,14]
[391087195,1760314239026,-600.0,0.00027945,2]
[391087197,1760314239036,-500.0,0.00028,14]
[391087199,1760314239045,-27365.50720289,0.00028,5]
[391087202,1760314239061,-12000.00008164,0.00028,5]
[391087204,1760314239072,-693.51996325,0.00028,5]
[391087206,1760314239081,-500.0,0.00028055,14]
[391087208,1760314239090,-500.0,0.00028109,14]
[391087210,1760314239100,-161.36,0.0002813,2]
[391087212,1760314239109,-500.0,0.00028164,14]
[391087214,1760314239118,-41.22003675,0.00028219,14]
[391087216,1760314239130,-458.77996325,0.00028219,14]
[391087218,1760314239139,-11.70920078,0.00028234,2]
[391087253,1760314240054,-284.66013354,0.00023429,2]
[391087255,1760314240066,-2568.05496811,0.00023429,2]
[391087256,1760314240076,-1153.0499996,0.00023429,2]
[391087257,1760314240087,-381.61958649,0.00023429,2]
[391087258,1760314240180,-815.26507108,0.00023429,2]
[391087259,1760314240191,-2691.30000316,0.00023429,2]
[391087260,1760314240202,-2621.59996778,0.00023429,2]
[391087261,1760314240213,-1970.6996,0.00023429,2]
[391087262,1760314240225,-14368.48432759,0.00023429,2]
[391087263,1760314240234,-440.88141856,0.00028234,2]
[391087264,1760314240244,-5753.3611959,0.00028236,2]
[391087265,1760314240254,-166.66,0.00028257,2]
[391087266,1760314240263,-322.57574858,0.00028283,9]
[391087267,1760314240272,-751.77483245,0.00028454,2]
[391087268,1760314240281,-600.0,0.00028493,2]
[391087269,1760314240291,-200.0,0.00028517,7]
[391087270,1760314240300,-150.0,0.00029026,120]
[391087271,1760314240310,-600.0,0.00029041,2]
[391087272,1760314240322,-334.0,0.00029059,120]
[391087273,1760314240332,-167.15491053,0.00029109,2]
[391087274,1760314240342,-150.0,0.00029118,120]
[391087275,1760314240351,-167.15491053,0.00029137,2]
[391087276,1760314240360,-167.15491053,0.00029165,2]
[391087277,1760314240371,-4728.81996664,0.00029165,2]
[391087278,1760314240380,-13188.47136792,0.0002919,2]
[391087279,1760314240391,-167.15491053,0.00029193,2]
[391087280,1760314240400,-13188.47136788,0.00029199,2]
[391087281,1760314240410,-320.0,0.000292,2]
[391087282,1760314240419,-29199.5389968,0.00029208,3]
[391087283,1760314240428,-13188.47136788,0.00029209,2]
[391087284,1760314240438,-13188.47136788,0.00029218,2]
[391087285,1760314240447,-167.15491053,0.0002922,2]
[391087286,1760314240456,-13188.47136788,0.00029228,2]
[391087287,1760314240466,-5000.0,0.00029235,2]
[391087288,1760314240475,-13188.47136788,0.00029237,2]
[391087289,1760314240488,-13188.47136788,0.00029247,2]
[391087290,1760314240497,-167.15491053,0.00029248,2]
[391087291,1760314240513,-29199.5389968,0.00029249,3]
[391087292,1760314240525,-13188.47136788,0.00029256,2]
[391087293,1760314240540,-13188.47136788,0.00029266,2]
[391087294,1760314240553,-500.0,0.00029273,5]
[391087295,1760314240565,-500.0,0.00029273,5]
[391087296,1760314240576,-250.0,0.00029273,5]
[391087297,1760314240589,-13188.47136788,0.00029275,2]
[391087298,1760314240601,-167.15491053,0.00029276,2]
[391087299,1760314240613,-8332.50154924,0.00029288,2]
[391087300,1760314240634,-500.0,0.00027945,14]
[391087301,1760314240646,-134.33486595,0.00029288,2]
[391087306,1760314243639,-500.0,0.00027898,2]
[391087307,1760314243650,-500.0,0.00027898,2]
[391087308,1760314243662,-500.0,0.00027898,2]
[391087309,1760314243673,-327.79888635,0.00027898,2]
[391087310,1760314243684,-500.0,0.00027898,2]
[391087311,1760314243695,-500.0,0.00027898,2]
[391087312,1760314243706,-500.0,0.00027898,2]
[391087313,1760314243728,-500.0,0.00027898,2]
[391087314,1760314243742,-500.0,0.00027898,2]
[391087315,1760314243754,-500.0,0.00027898,2]
[391087316,1760314243768,-500.0,0.00027898,2]
[391087317,1760314243781,-500.0,0.00027898,2]
[391087318,1760314243794,-500.0,0.00027898,2]
[391087319,1760314243807,-500.0,0.00027898,2]
[391087320,1760314243820,-500.0,0.00027898,2]
[391087321,1760314243833,-500.0,0.00027898,2]
[391087322,1760314243845,-500.0,0.00028,14]
[391087323,1760314243858,-500.0,0.00028055,14]
[391087324,1760314243872,-500.0,0.00028109,14]
[391087325,1760314243885,-500.0,0.00028164,14]
[391087326,1760314243898,-500.0,0.00028219,14]
[391087327,1760314243910,-468.38006375,0.00028274,14]
[391087328,1760314243923,-17995.65434281,0.00029288,2]
[391087329,1760314243935,-300.0,0.0002929,41]
[391087330,1760314243948,-1000.0,0.0002929,11]
[391087331,1760314243961,-1000.0,0.0002929,11]
[391087332,1760314243974,-1000.0,0.0002929,11]
[391087333,1760314243986,-630.32261141,0.0002929,11]
[391087334,1760314243999,-169.1,0.000293,20]
[391087335,1760314244010,-29199.5389968,0.00029306,3]
[391087336,1760314244021,-300.0,0.00029335,10]
[391087337,1760314244032,-10000.0,0.00029335,2]
[391087338,1760314244044,-151.0,0.00029335,2]
[391087339,1760314244055,-295.36966,0.00029335,2]
[391087340,1760314244067,-413.17,0.00029336,7]
[391087341,1760314244078,-1000.0,0.00029338,2]
[391087342,1760314244090,-500.0,0.00029339,30]
[391087343,1760314244100,-500.0,0.00029339,30]
[391087344,1760314244110,-500.0,0.00029339,30]
[391087345,1760314244121,-500.0,0.00029339,30]
[391087346,1760314244132,-500.0,0.00029339,30]
[391087347,1760314244143,-500.0,0.00029339,30]
[391087348,1760314244154,-500.0,0.00029339,30]
[391087349,1760314244165,-500.0,0.00029339,30]
[391087350,1760314244177,-291.44723754,0.00029339,30]
[391087351,1760314244189,-25688.20177803,0.00029349,3]
[391087352,1760314244207,-3511.33721877,0.00029349,3]
[391087353,1760314244219,-2000.0,0.00029354,2]
[391087354,1760314244230,-219.27942393,0.00029354,2]
[391087355,1760314244243,-1780.72057607,0.00029354,2]
[391087356,1760314244257,-2000.0,0.00029354,2]
[391087357,1760314244267,-143.85622078,0.00029365,3]
[391087358,1760314244293,-500.0,0.00027898,2]
[391087359,1760314244305,-58.845,0.00027898,2]
[391087360,1760314246015,-441.155,0.00027898,2]
[391087361,1760314246028,-164.7884823,0.00029338,2]
[391087362,1760314246041,-4356.5747437,0.00029365,3]
[391087363,1760314246113,-1859.41202447,0.00029365,3]
[391087364,1760314246126,-4584.83952915,0.00029365,3]
[391087365,1760314246209,-2907.83891815,0.00029365,3]
[391087366,1760314246224,-306.75192628,0.00029365,3]
[391087369,1760314246602,-44239.80463107,0.00029365,3]
[391087370,1760314246613,-23728.2386373,0.00029365,3]
[391087371,1760314246623,-150.68,0.00029366,2]
[391087372,1760314246634,-150.68,0.00029366,2]
[391087373,1760314246645,-150.68,0.00029366,2]
[391087374,1760314246656,-150.68,0.00029366,2]
[391087375,1760314246667,-150.68,0.00029366,2]
[391087376,1760314246678,-150.68,0.00029366,2]
[391087377,1760314246689,-150.68,0.00029366,2]
[391087378,1760314246700,-150.68,0.00029366,2]
[391087379,1760314246710,-150.68,0.00029366,2]
[391087380,1760314246721,-150.68,0.00029366,2]
[391087381,1760314246732,-150.68,0.00029366,2]
[391087382,1760314246743,-150.68,0.00029366,2]
[391087383,1760314246755,-150.68,0.00029366,2]
[391087384,1760314246769,-150.68,0.00029366,2]
[391087385,1760314246780,-150.68,0.00029366,2]
[391087386,1760314246791,-150.68,0.00029366,2]
[391087387,1760314246803,-150.68,0.00029366,2]
[391087388,1760314246813,-150.68,0.00029366,2]
[391087389,1760314246823,-150.68,0.00029366,2]
[391087390,1760314246836,-150.68,0.00029366,2]
[391087391,1760314246847,-150.68,0.00029366,2]
[391087392,1760314246858,-150.68,0.00029366,2]
[391087393,1760314246869,-150.68,0.00029366,2]
[391087394,1760314247437,-150.68,0.00029366,2]
[391087395,1760314247455,-150.68,0.00029366,2]
[391087396,1760314247481,-150.68,0.00029366,2]
[391087397,1760314247494,-150.68,0.00029366,2]
[391087398,1760314247504,-150.68,0.00029366,2]
[391087399,1760314247516,-150.68,0.00029366,2]
[391087400,1760314247526,-150.68,0.00029366,2]
[391087401,1760314247536,-150.68,0.00029366,2]
[391087402,1760314247545,-150.68,0.00029366,2]
[391087403,1760314247555,-150.68,0.00029366,2]
[391087404,1760314247565,-150.68,0.00029366,2]
[391087405,1760314247575,-150.68,0.00029366,2]
[391087406,1760314247585,-150.68,0.00029366,2]
[391087407,1760314247595,-150.68,0.00029366,2]
[391087408,1760314247605,-150.68,0.00029366,2]
[391087409,1760314247615,-150.68,0.00029366,2]
[391087410,1760314247624,-150.68,0.00029366,2]
[391087411,1760314247634,-150.68,0.00029366,2]
[391087412,1760314247644,-150.68,0.00029366,2]
[391087413,1760314247654,-150.68,0.00029366,2]
[391087414,1760314247663,-150.68,0.00029366,2]
[391087415,1760314247673,-150.68,0.00029366,2]
[391087416,1760314247683,-150.68,0.00029366,2]
[391087417,1760314247692,-150.68,0.00029366,2]
[391087418,1760314247702,-150.68,0.00029366,2]
[391087419,1760314247712,-150.68,0.00029366,2]
[391087420,1760314247721,-150.68,0.00029366,2]
[391087421,1760314247731,-150.68,0.00029366,2]
[391087422,1760314247741,-150.68,0.00029366,2]
[391087423,1760314247750,-150.68,0.00029366,2]
[391087424,1760314247764,-150.68,0.00029366,2]
[391087425,1760314247774,-150.68,0.00029366,2]
[391087426,1760314247784,-150.68,0.00029366,2]
[391087427,1760314247793,-150.68,0.00029366,2]
[391087428,1760314247803,-150.68,0.00029366,2]
[391087429,1760314247812,-150.68,0.00029366,2]
[391087430,1760314247821,-150.68,0.00029366,2]
[391087431,1760314247831,-150.68,0.00029366,2]
[391087432,1760314247841,-150.68,0.00029366,2]
[391087433,1760314247850,-150.68,0.00029366,2]
[391087434,1760314247860,-150.68,0.00029366,2]
[391087435,1760314247870,-150.68,0.00029366,2]
[391087436,1760314247879,-150.68,0.00029366,2]
[391087437,1760314247888,-150.68,0.00029366,2]
[391087438,1760314247898,-150.68,0.00029366,2]
[391087439,1760314247907,-150.68,0.00029366,2]
[391087440,1760314247917,-150.68,0.00029366,2]
[391087441,1760314247927,-150.68,0.00029366,2]
[391087442,1760314247936,-150.68,0.00029366,2]
[391087443,1760314247945,-150.68,0.00029366,2]
[391087444,1760314247955,-150.68,0.00029366,2]
[391087445,1760314247964,-150.68,0.00029366,2]
[391087446,1760314247974,-911.0,0.00029368,5]
[391087447,1760314247983,-500.0,0.00029373,5]
[391087448,1760314247992,-500.0,0.00029373,5]
[391087449,1760314248001,-151.0,0.00029375,30]
[391087450,1760314248014,-288.48082,0.00029375,30]
[391087451,1760314248024,-151.0,0.00029375,30]
[391087452,1760314248033,-151.0,0.00029375,30]
[391087453,1760314248042,-151.0,0.00029375,30]
[391087454,1760314248051,-199.42929,0.00029375,30]
[391087455,1760314248061,-152.473849,0.00029375,30]
[391087456,1760314248070,-151.0,0.00029375,30]
[391087457,1760314248079,-92517.15455249,0.00029376,8]
[391087458,1760314248088,-2206.53879774,0.00029376,2]
[391087459,1760314248097,-171480.22182137,0.00029376,30]
[391087460,1760314248110,-2875.0640181,0.00029376,30]
[391087461,1760314248121,-1571155.46183609,0.00029376,30]
[391087464,1760314541149,1867.91673673,0.00027397,120]
[391087468,1760314903924,1075.0,0.00027397,120]
[391087470,1760314933367,1000.0,0.00027397,120]
[391087472,1760315017408,1029.22783909,0.00027397,120]
[391087473,1760315090145,150.0,0.00027397,120]
[391087504,1760315432226,-840.82494719,0.000149,2]
[391087543,1760315433140,-632.28675051,0.000149,2]
[391087544,1760315433150,-1409.6300075,0.000149,2]
[391087545,1760315433159,-6689.46748209,0.000149,2]
[391087546,1760315433168,-200.02585997,0.000149,2]
[391087547,1760315433178,-500.0,0.00014973,2]
[391087548,1760315433188,-500.0,0.00014973,2]
[391087549,1760315433197,-177.24842065,0.00014973,2]
[391087550,1760315433206,-174.62704616,0.00014973,2]
[391087551,1760315433215,-363.04490117,0.00014973,2]
[391087552,1760315433228,-136.95509883,0.00014973,2]
[391087553,1760315433238,-500.0,0.00014973,2]
[391087554,1760315433248,-500.0,0.00014973,2]
[391087555,1760315433258,-230.78596835,0.00014973,2]
[391087556,1760315433271,-269.21403165,0.00014973,2]
[391087557,1760315433282,-500.0,0.00014973,2]
[391087558,1760315433291,-374.46922095,0.00014973,2]
[391087559,1760315433301,-500.0,0.00014973,2]
[391087560,1760315433311,-500.0,0.00014973,2]
[391087561,1760315433320,-213.76869546,0.00014973,2]
[391087562,1760315433329,-500.0,0.00014973,2]
[391087563,1760315433338,-500.0,0.00014973,2]
[391087564,1760315433348,-500.0,0.00014973,2]
[391087565,1760315433357,-500.0,0.00014973,2]
[391087566,1760315433366,-500.0,0.00014973,2]
[391087567,1760315433376,-312.38795217,0.00014973,2]
[391087568,1760315433385,-500.42508604,0.00014973,2]
[391087569,1760315433394,-160.89803591,0.00014973,2]
[391087570,1760315433403,-500.0,0.00014973,2]
[391087571,1760315433412,-166.6327117,0.00014973,2]
[391087572,1760315433422,-500.23294292,0.00014973,2]
[391087573,1760315433432,-500.0,0.00014973,2]
[391087574,1760315433441,-854.66328016,0.00014986,2]
[391087575,1760315433451,-1000.13225756,0.00014986,2]
[391087576,1760315433462,-819.20446228,0.00014986,2]
[391087577,1760315433471,-274.18,0.0001499,2]
[391087578,1760315433479,-274.18,0.0001499,2]
[391087579,1760315433488,-274.18,0.0001499,2]
[391087580,1760315433497,-274.18,0.0001499,2]
[391087581,1760315433506,-274.18,0.0001499,2]
[391087582,1760315433521,-77.34514261,0.0001499,2]
[391087583,1760315433532,-88.2356774,0.0001499,2]
[391087584,1760315433542,-165.58082001,0.0001499,2]
[391087585,1760315433551,-150.0,0.00014998,2]
[391087586,1760315433560,-134.18350259,0.00014999,2]
[391087587,1760315433571,-60.68460118,0.00014999,2]
[391087588,1760315433580,-500.0,0.00014999,2]
[391087589,1760315433590,-173.61961745,0.00014999,2]
[391087590,1760315433599,-500.0,0.00014999,2]
[391087591,1760315433609,-500.0,0.00014999,2]
[391087592,1760315433618,-415.82578137,0.00014999,2]
[391087593,1760315433629,-84.17421863,0.00014999,2]
[391087594,1760315433639,-171.20914977,0.00014999,2]
[391087595,1760315433648,-207.88714963,0.00014999,2]
[391087596,1760315433660,-500.0,0.00014999,2]
[391087597,1760315433671,-500.0,0.00014999,2]
[391087598,1760315433680,-500.0,0.00014999,2]
[391087599,1760315433689,-558.96671587,0.00014999,2]
[391087600,1760315433701,-500.0,0.00014999,2]
[391087601,1760315433710,-500.0,0.00014999,2]
[391087602,1760315433719,-500.0,0.00014999,2]
[391087603,1760315433727,-158.72261723,0.00014999,2]
[391087604,1760315433740,-500.0,0.00014999,2]
[391087605,1760315433749,-293.42538245,0.00014999,2]
[391087606,1760315433759,-500.0,0.00014999,2]
[391087607,1760315433770,-155.66119153,0.00014999,2]
[391087608,1760315433780,-500.0,0.00014999,2]
[391087609,1760315433789,-500.0,0.00014999,2]
[391087610,1760315433799,-500.0,0.00014999,2]
[391087611,1760315433808,-232.77988863,0.00014999,2]
[391087612,1760315433818,-500.0,0.00014999,2]
[391087613,1760315433827,-500.0,0.00014999,2]
[391087614,1760315433837,-500.0,0.00014999,2]
[391087615,1760315433846,-500.0,0.00014999,2]
[391087616,1760315433855,-500.0,0.00014999,2]
[391087617,1760315433864,-500.0,0.00014999,2]
[391087618,1760315433873,-450.0,0.00014999,2]
[391087619,1760315433883,-16427.88466666,0.00015,2]
[391087620,1760315433896,-1603.77847889,0.00015,2]
[391087621,1760315433907,-33608.91413069,0.00015,2]
[391087622,1760315433916,-55782.40557978,0.00015,2]
[391087623,1760315433927,-344.81,0.00015,2]
[391087624,1760315433939,-506.58,0.00015,2]
[391087625,1760315433949,-1375.58837666,0.00015,2]
[391087626,1760315433961,-1661.98799914,0.00015,2]
[391087627,1760315433972,-1563.28726667,0.00015,2]
[391087628,1760315433983,-1106.89613506,0.00015,2]
[391087629,1760315433994,-745.58750495,0.00015,2]
[391087630,1760315434005,-10633.37959752,0.00015,2]
[391087631,1760315434017,-2436.325,0.00015,2]
[391087632,1760315434029,-329590.34155515,0.00015,2]
[391087633,1760315434040,-364.8870676,0.00015,2]
[391087640,1760315438169,-471.87366345,0.00015,2]
[391087642,1760315438181,-527.03461748,0.00015,2]
[391087644,1760315438225,-85394.73365735,0.00015,2]
[391087645,1760315438279,-1374.20020265,0.00015,2]
[391087646,1760315438387,-5457.0611677,0.00015,2]
[391087647,1760315438400,-2864.08186444,0.00015,2]
[391087769,1760315440110,-478.11759999,0.00015,2]
[391087770,1760315440122,-7528.75,0.00015,2]
[391087771,1760315440165,-3145.11315258,0.00015,2]
[391087772,1760315440176,-1445.52786979,0.00015,2]
[391087773,1760315440218,-4045.39821024,0.00015,2]
[391087774,1760315440231,-665.23,0.00015,2]
[391087775,1760315440242,-162185.26689874,0.00015,2]
[391087776,1760315440274,-4333.66082566,0.00015,2]
[391087777,1760315440286,-496.77947093,0.00015,2]
[391087778,1760315440327,-1115.90003394,0.00015,2]
[391087779,1760315440338,-2908.0545,0.00015,2]
[391087780,1760315440385,-4030.95200117,0.00015,2]
[391087781,1760315440397,-8575.08337455,0.00015,2]
[391087782,1760315440408,-4128.63986883,0.00015,2]